bitfinex/quotes_ETHUSD_20240824
["timestamp","ask_amount","ask_price","bid_price","bid_amount"]
[1724509920356,3.61768,2764.2,2763.7,3.61833]
[1724509920557,3.86051,2764.3,2763.7,7.23658]
[1724509920765,6.04592,2764.4,2763.9,3.61806]
[1724509920962,2.4285,2764.4,2763.9,3.61806]
[1724509921141,3.61755,2764.3,2763.7,7.23646]
[1724509921354,3.61755,2764.3,2763.7,3.61821]
[1724509921640,7.23518,2764.3,2763.7,3.61821]
[1724509922151,3.61794,2764.0,2763.5,3.61851]
[1724509922640,6.04658,2763.9,2763.3,3.61873]
[1724509922823,6.04658,2763.9,2763.4,3.0]
[1724509923024,9.66474,2763.9,2763.4,3.0]
[1724509923702,6.04658,2763.9,2763.4,3.0]
[1724509923828,2.4285,2763.9,2763.4,3.0]
[1724509924229,7.23583,2764.1,2763.5,3.61859]
[1724509924516,8.202263,2764.1,2763.5,3.61859]
[1724509924758,3.61796,2764.0,2763.5,3.61859]
[1724509925548,3.61808,2763.9,2763.4,3.0]
[1724509925962,4.584323,2764.1,2763.5,3.61851]
[1724509926322,2.4285,2764.2,2763.7,3.6183]
[1724509926726,2.4285,2764.2,2763.5,6.07267]
[1724509927181,3.61782,2764.1,2763.6,3.61838]
[1724509927380,3.61762,2764.3,2763.8,3.61816]
[1724509927582,6.03204,2764.5,2763.8,3.61816]
[1724509927882,7.732953,2764.5,2763.8,3.61816]
[1724509928171,11.350333,2764.5,2764.0,3.61794]
[1724509928352,7.732953,2764.5,2763.9,3.61804]
[1724509928744,7.732953,2764.5,2764.0,3.61793]
[1724509928955,10.97717,2764.6,2764.1,3.61777]
[1724509929145,3.61717,2764.6,2764.1,3.61777]
[1724509929342,3.61731,2764.5,2763.9,6.07216]
[1724509929557,3.61731,2764.5,2763.9,3.61796]
[1724509929965,3.61731,2764.5,2764.0,3.61792]
[1724509930175,4.340758,2764.5,2763.9,3.61796]
[1724509930667,7.2344,2764.6,2764.0,3.61794]
[1724509930872,3.61717,2764.6,2764.0,3.61794]
[1724509931558,3.61738,2764.5,2763.9,3.61796]
[1724509932110,3.61738,2764.5,2764.0,3.61792]
[1724509933031,3.61717,2764.6,2764.0,3.61792]
[1724509933393,3.61737,2764.5,2764.0,3.61792]
[1724509933594,3.61742,2764.4,2764.0,3.61792]
[1724509933916,3.61782,2764.1,2763.6,7.45]
[1724509934115,3.61801,2764.0,2763.6,7.45]
[1724509934414,3.61801,2764.0,2763.4,6.6186]
[1724509934764,3.61782,2764.1,2763.5,3.61858]
[1724509934970,3.61782,2764.1,2763.6,3.0]
[1724509935309,6.03232,2764.3,2763.8,3.61812]
[1724509935945,7.36,2764.5,2764.0,3.61786]
[1724509936146,7.36,2764.5,2764.1,3.6178]
[1724509936535,7.36,2764.5,2764.2,3.61763]
[1724509936825,3.61716,2764.6,2764.1,3.6178]
[1724509937320,3.61716,2764.6,2764.1,7.23544]
[1724509937529,3.61716,2764.6,2764.1,3.61772]
[1724509937745,3.61694,2764.8,2764.2,3.61766]
[1724509938308,3.61705,2764.7,2764.2,3.61766]
[1724509938723,3.61694,2764.8,2764.3,3.61754]
[1724509940095,3.61704,2764.7,2764.3,3.61754]
[1724509940420,3.61694,2764.8,2764.3,3.61754]
[1724509940619,7.23394,2764.8,2764.3,3.61754]
[1724509940839,3.61694,2764.8,2764.3,3.61754]
[1724509941159,3.61694,2764.8,2764.3,4.341065]
[1724509942850,3.61672,2765.0,2764.4,3.61735]
[1724509943070,3.61691,2764.8,2764.3,6.795185]
[1724509943225,3.61731,2764.5,2763.9,6.07215]
[1724509943432,3.61731,2764.5,2764.0,3.61784]
[1724509944263,3.61731,2764.5,2764.1,3.6178]
[1724509944439,9.64888,2764.7,2764.1,3.6178]
[1724509944618,3.61716,2764.6,2764.1,3.6178]
[1724509946428,9.64885,2764.7,2764.1,3.61771]
[1724509946630,3.61718,2764.6,2764.1,3.61771]
[1724509947583,3.61739,2764.5,2763.9,6.07219]
[1724509947715,3.61757,2764.3,2763.8,11.0682]
[1724509947914,3.61757,2764.3,2763.8,7.45]
[1724509948661,3.61757,2764.3,2763.8,11.06819]
[1724509949274,3.618,2764.0,2763.4,3.6187]
[1724509950552,3.618,2764.0,2763.5,3.0]
[1724509950964,3.618,2764.0,2763.5,6.61857]
[1724509952143,3.618,2764.0,2763.5,3.61857]
[1724509952361,0.3618,2763.9,2763.5,3.61857]
[1724509953367,3.618,2764.0,2763.5,3.61857]
[1724509955283,3.61808,2763.9,2763.4,3.61863]
[1724509955494,5.51169994,2764.1,2763.3,3.61877]
[1724509955779,3.61792,2764.1,2763.5,3.61858]
[1724509955986,5.51169994,2764.1,2763.5,3.61858]
[1724509956165,7.23599,2764.0,2763.5,3.61858]
[1724509956344,3.61796,2764.0,2763.5,3.61858]
[1724509957153,3.61796,2764.0,2763.3,3.61875]
[1724509957349,3.6181,2763.9,2763.3,7.23753]
[1724509957783,3.6181,2763.9,2763.3,3.61875]
[1724509957938,3.6181,2763.9,2763.3,7.23754]
[1724509958478,3.6181,2763.9,2763.3,3.61875]
[1724509958773,3.6181,2763.9,2763.4,3.61873]
[1724509960011,6.73469693,2764.1,2763.4,3.61873]
[1724509960167,3.61794,2764.0,2763.5,3.61858]
[1724509963845,3.61794,2764.0,2763.5,7.2371]
[1724509964182,3.61794,2764.0,2763.5,4.34223]
[1724509964382,3.61794,2764.0,2763.5,3.61852]
[1724509964586,7.23598,2764.0,2763.5,3.61852]
[1724509965345,3.61794,2764.0,2763.5,3.61852]
[1724509966228,3.61781,2764.1,2763.5,3.61851]
[1724509966393,3.61781,2764.1,2763.4,3.61873]
[1724509966594,3.61781,2764.1,2763.5,3.61852]
[1724509970981,11.50908113,2764.2,2763.6,3.61842]
[1724509971188,3.61783,2764.1,2763.6,3.61842]
[1724509971421,3.61783,2764.1,2763.5,6.0645]
[1724509971801,3.61783,2764.1,2763.5,9.68302]
[1724509972037,3.61783,2764.1,2763.5,6.0645]
[1724509972934,3.61783,2764.1,2763.5,9.68303]
[1724509973437,3.61783,2764.1,2763.6,3.61845]
[1724509975095,1.89665113,2764.3,2763.6,1.0044823]
[1724509975297,15.68507136,2764.5,2764.3,3.61746]
[1724509975298,7.36,2764.5,2764.3,3.61746]
[1724509975514,1.8963106,2764.7,2764.3,3.61746]
[1724509975742,7.9449306,2764.8,2764.3,3.61746]
[1724509975947,1.8963106,2764.8,2764.3,3.61746]
[1724509976328,5.5131806,2764.9,2764.3,3.61746]
[1724509976844,5.5131806,2764.9,2764.4,3.61741]
[1724509977046,1.8963106,2764.9,2764.4,3.61741]
[1724509977200,2.46350524,2765.0,2764.5,3.61728]
[1724509977641,6.08016524,2765.0,2764.5,3.61728]
[1724509977863,6.08016524,2765.0,2764.4,3.61741]
[1724509978548,3.61677,2764.9,2764.4,3.61741]
[1724509978903,2.46350524,2765.0,2764.4,3.6173]
[1724509979251,2.46350524,2765.0,2764.5,3.61721]
[1724509979435,0.56719464,2765.0,2764.5,3.61721]
[1724509980972,0.56719464,2765.0,2763.9,3.0]
[1724509980973,3.61749,2764.4,2763.9,3.0]
[1724509981137,9.66613,2764.6,2764.0,3.61794]
[1724509981306,9.66613,2764.6,2764.0,3.61787]
[1724509981307,6.04887,2764.6,2764.0,3.61787]
[1724509981508,1.89520737,2764.9,2764.1,5.807787]
[1724509981707,4.32690737,2765.1,2764.6,3.61714]
[1724509981951,4.32690737,2765.1,2764.6,3.61708]
[1724509982449,7.94344737,2765.1,2764.6,3.61708]
[1724509982609,6.04824,2765.1,2764.4,3.61732]
[1724509982818,3.61684,2764.9,2764.4,3.61732]
[1724509983152,0.79434474,2765.0,2764.2,3.61755]
[1724509983304,0.79434474,2765.0,2764.3,3.0]
[1724509984049,3.61677,2764.9,2764.3,3.0]
[1724509984345,8.02773474,2765.0,2764.4,3.61741]
[1724509985049,3.61677,2764.9,2764.4,3.61741]
[1724509986244,4.41098474,2765.0,2764.4,3.61741]
[1724509986950,3.61683,2764.9,2764.4,3.61741]
[1724509987167,4.41098474,2765.0,2764.4,7.23474]
[1724509987355,3.61664,2765.0,2764.5,3.61728]
[1724509988207,6.04829,2765.1,2764.6,3.61715]
[1724509989260,5.51032218,2765.2,2764.6,3.61715]
[1724509989261,1.89387218,2765.2,2764.6,2.3482]
[1724509989447,5.51014218,2765.3,2764.8,3.61682]
[1724509989639,3.61627,2765.3,2764.8,7.23363]
[1724509989838,3.61627,2765.3,2764.8,3.61681]
[1724509990668,6.02639,2765.5,2765.0,3.61656]
[1724509991473,3.61612,2765.4,2765.0,3.61656]
[1724509991787,6.02639,2765.5,2764.8,4.213311]
[1724509991982,9.64249,2765.5,2765.0,3.61663]
[1724509992425,3.61599,2765.5,2765.0,3.61663]
[1724509992632,16.29141898,2766.0,2765.0,4.3996241]
[1724509992633,4.30427218,2765.8,2765.0,4.3996241]
[1724509992832,4.30427218,2765.8,2765.1,2.3482]
[1724509993185,3.61572,2765.7,2765.2,3.61636]
[1724509993734,7.23151,2765.7,2765.2,3.61636]
[1724509993933,3.61572,2765.7,2765.2,3.61636]
[1724509994269,3.61572,2765.7,2765.1,5.96467]
[1724509994487,3.61572,2765.7,2765.1,7.00108641]
[1724509994852,3.61585,2765.6,2765.1,7.00108641]
[1724509995053,3.616,2765.5,2765.1,3.38461641]
[1724509995287,3.616,2765.5,2765.0,0.7829941]
[1724509995782,7.23206,2765.5,2765.0,0.7829941]
[1724509996007,3.616,2765.5,2765.0,0.7829941]
[1724509996701,3.616,2765.5,2765.0,4.3996241]
[1724510000000,3.616,2765.5,2765.0,4.3995541]
[1724510000294,3.616,2765.5,2765.1,0.67477541]
[1724510001021,3.61585,2765.6,2765.1,4.29125541]
[1724510001810,3.61598,2765.5,2765.1,0.67477541]
[1724510002149,7.23204,2765.5,2765.1,0.67477541]
[1724510002380,7.23205,2765.5,2765.1,0.67477541]
[1724510003503,3.61585,2765.6,2765.1,4.29126541]
[1724510004022,3.61579,2765.7,2765.2,0.50742595]
[1724510004321,3.61579,2765.7,2765.3,2.3482]
[1724510005382,3.61579,2765.7,2765.3,5.96442]
[1724510005771,3.61554,2765.9,2765.3,5.96442]
[1724510005966,3.61565,2765.8,2765.3,5.96442]
[1724510006163,3.61546,2765.9,2765.3,7.04072114]
[1724510006369,3.61529,2766.1,2765.5,3.61597]
[1724510006573,3.61541,2766.0,2765.5,3.61597]
[1724510007103,3.61546,2765.9,2765.5,3.61597]
[1724510008402,7.23102,2765.9,2765.3,7.04063114]
[1724510008605,3.61546,2765.9,2765.4,4.32016311]
[1724510008808,7.231,2765.9,2765.4,4.32016311]
[1724510009109,9.6456,2765.9,2765.4,4.32016311]
[1724510009310,3.61576,2765.7,2765.4,0.70406311]
[1724510009536,3.61576,2765.7,2765.2,3.61629]
[1724510009870,3.61576,2765.7,2765.3,3.61624]
[1724510011625,9.64564,2765.9,2765.3,3.61624]
[1724510011810,9.64564,2765.9,2765.3,5.084505]
[1724510012476,3.61561,2765.8,2765.3,5.084505]
[1724510015113,3.61607,2765.5,2765.1,7.45]
[1724510015407,3.61607,2765.5,2765.0,5.93472]
[1724510015614,3.61607,2765.5,2765.1,3.0]
[1724510015915,3.61585,2765.6,2765.1,10.2329]
[1724510016135,3.61538,2766.0,2765.3,1.26697511]
[1724510016270,3.61538,2766.0,2765.5,5.95745]
[1724510016271,7.23079,2766.0,2765.5,5.95745]
[1724510016600,3.61538,2766.0,2765.5,5.95745]
[1724510016979,7.2308,2766.0,2765.5,5.95745]
[1724510017531,3.61538,2766.0,2765.5,5.95745]
[1724510017714,7.23079,2766.0,2765.5,5.95745]
[1724510018915,7.23079,2766.0,2765.5,2.3415]
[1724510018916,3.61547,2765.9,2765.5,2.3415]
[1724510019296,3.61547,2765.9,2765.4,3.61611]
[1724510022397,3.61547,2765.9,2765.4,7.23216]
[1724510022645,3.61547,2765.9,2765.5,0.957366]
[1724510023499,3.61547,2765.9,2765.5,4.573326]
[1724510023848,3.61533,2766.0,2765.5,4.573326]
[1724510024737,3.61548,2765.9,2765.5,4.573326]
[1724510024916,3.61548,2765.9,2765.3,10.84087511]
[1724510025121,3.61548,2765.9,2765.4,3.6161]
[1724510028344,3.61525,2766.1,2765.4,3.61603]
[1724510028547,3.615,2766.3,2765.6,3.61578]
[1724510028723,3.61484,2766.4,2765.9,3.61544]
[1724510029122,3.61496,2766.3,2765.7,9.914928]
[1724510029330,1.89346686,2766.2,2765.8,3.61557]
[1724510029539,3.61526,2766.1,2765.7,2.683678]
[1724510029743,1.89346686,2766.2,2765.4,9.7721]
[1724510029744,3.61535,2766.0,2765.4,9.7721]
[1724510029959,3.61535,2766.0,2765.5,3.0]
[1724510030129,1.26697511,2765.9,2765.4,7.45]
[1724510030324,3.61565,2765.8,2765.4,7.45]
[1724510030536,7.23133,2765.8,2765.4,7.45]
[1724510030715,3.61565,2765.8,2765.4,7.45]
[1724510031518,6.09525,2765.8,2765.4,8.556621]
[1724510031716,6.09525,2765.8,2765.1,8.93851]
[1724510031958,6.09525,2765.8,2764.8,0.596501]
[1724510031959,3.61612,2765.4,2764.9,3.61671]
[1724510032275,3.61644,2765.2,2764.8,0.596501]
[1724510032645,3.74657511,2765.3,2764.8,4.213381]
[1724510033221,7.36287511,2765.3,2764.8,0.596501]
[1724510033422,7.36287511,2765.3,2764.8,4.213361]
[1724510034669,3.61613,2765.4,2764.9,8.7614901]
[1724510034854,3.61613,2765.4,2764.9,5.1447601]
[1724510035780,4.88298511,2765.5,2764.9,5.1447301]
[1724510035963,4.88298511,2765.5,2765.0,3.61653]
[1724510036280,3.61601,2765.5,2765.0,3.61653]
[1724510037079,8.49908511,2765.5,2765.0,3.61653]
[1724510037381,4.88298511,2765.5,2765.0,3.61653]
[1724510037776,3.61676,2764.9,2764.5,3.0]
[1724510037983,3.61676,2764.9,2764.4,3.61735]
[1724510038383,3.61676,2764.9,2764.2,5.9397]
[1724510038384,7.36333511,2764.9,2764.2,5.9397]
[1724510038680,3.61705,2764.7,2764.2,5.9397]
[1724510038889,3.61705,2764.7,2764.2,7.76715351]
[1724510039374,10.98031511,2764.9,2764.2,7.76715351]
[1724510039580,7.36342511,2764.9,2764.3,3.61753]
[1724510040482,3.61691,2764.8,2764.3,3.61753]
[1724510041695,3.61704,2764.7,2764.2,7.76715351]
[1724510042758,3.61704,2764.7,2764.2,1.82745351]
[1724510042970,3.61719,2764.6,2764.2,1.82745351]
[1724510043351,3.61719,2764.6,2764.1,4.88477511]
[1724510043559,4.1841338,2764.8,2764.2,3.61766]
[1724510043854,3.617,2764.8,2764.2,7.23532]
[1724510044691,3.61685,2764.9,2764.3,3.61742]
[1724510044893,7.23314,2765.1,2764.5,3.61727]
[1724510045104,4.16160463,2765.1,2764.5,3.61727]
[1724510046474,3.61664,2765.0,2764.5,3.61727]
[1724510048803,3.61653,2765.1,2764.6,3.61714]
[1724510049009,3.61653,2765.1,2764.5,7.23443]
[1724510049217,3.61653,2765.1,2764.5,8.31678051]
[1724510049419,7.23311,2765.1,2764.5,4.69956051]
[1724510049559,7.23312,2765.1,2764.5,4.69955051]
[1724510049761,3.61653,2765.1,2764.5,4.69955051]
[1724510049961,3.61633,2765.3,2764.5,5.96652562]
[1724510050162,3.61633,2765.3,2764.6,0.82886256]
[1724510050607,1.26697511,2765.3,2764.6,0.82886256]
[1724510050776,4.88329511,2765.3,2764.5,3.6172]
[1724510051093,4.88329511,2765.3,2764.7,3.61701]
[1724510051520,6.77954318,2765.3,2764.7,3.61701]
[1724510051861,3.61644,2765.2,2764.7,3.61701]
[1724510052141,6.77954318,2765.3,2764.7,3.61693]
[1724510052332,4.88329511,2765.3,2764.8,2.855993]
[1724510052490,3.61632,2765.3,2764.8,6.472883]
[1724510053309,7.23264,2765.3,2764.8,6.472883]
[1724510053511,3.61639,2765.2,2764.8,2.855993]
[1724510054767,3.61631,2765.3,2764.8,2.855993]
[1724510055808,3.61639,2765.2,2764.8,2.855993]
[1724510058269,7.23235,2765.4,2764.9,0.6472943]
[1724510058970,3.61626,2765.3,2764.9,0.6472943]
[1724510059163,3.61639,2765.2,2764.9,0.6472943]
[1724510060204,3.61613,2765.4,2764.9,0.6472943]
[1724510060511,3.61638,2765.2,2764.8,6.472883]
[1724510063288,3.61624,2765.3,2764.8,6.472883]
[1724510064708,3.61624,2765.3,2764.8,10.089773]
[1724510064911,3.61624,2765.3,2764.8,10.089703]
[1724510065082,3.61624,2765.3,2764.8,6.472813]
[1724510065911,3.60164,2765.3,2764.8,6.472813]
[1724510066689,3.61625,2765.3,2764.8,6.472813]
[1724510067097,3.61613,2765.4,2764.9,4.39068881]
[1724510067351,3.61613,2765.4,2765.0,3.61662]
[1724510067519,1.26697511,2765.5,2765.1,3.61648]
[1724510067726,5.511392,2765.6,2765.0,3.61662]
[1724510067888,3.61601,2765.5,2765.0,3.61662]
[1724510068090,3.61601,2765.5,2765.0,4.70291118]
[1724510068321,5.511392,2765.6,2765.1,3.61648]
[1724510068518,1.895462,2765.5,2765.1,3.61648]
[1724510071308,1.89652936,2765.7,2765.3,3.61616]
[1724510071636,7.36,2765.8,2765.3,3.61616]
[1724510071637,5.51212936,2765.8,2765.3,4.88313511]
[1724510072547,1.89652936,2765.7,2765.3,4.88313511]
[1724510072754,5.51212936,2765.8,2765.3,8.49929511]
[1724510072906,5.51212936,2765.8,2765.4,1.16270649]
[1724510073327,1.89652936,2765.8,2765.4,4.77874649]
[1724510073640,2.27583524,2766.1,2765.4,4.77874649]
[1724510073641,1.89652936,2765.9,2765.6,6.08767]
[1724510073848,6.02874,2766.2,2765.7,7.23128]
[1724510073849,1.89652936,2766.0,2765.7,7.23128]
[1724510074060,1.89652936,2766.1,2765.7,4.71264551]
[1724510074240,1.89690118,2766.1,2765.7,4.71264551]
[1724510074453,3.61512,2766.2,2765.7,4.71264551]
[1724510074454,5.51202118,2766.2,2765.7,4.71264551]
[1724510075207,3.61521,2766.1,2765.7,4.71264551]
[1724510075403,3.61521,2766.1,2765.7,1.09701551]
[1724510076445,3.61521,2766.1,2765.8,0.71847255]
[1724510078742,3.61543,2766.0,2765.8,0.71847255]
[1724510078937,3.61543,2766.0,2765.3,7.45]
[1724510078938,3.61558,2765.9,2765.3,11.18887511]
[1724510079147,3.61558,2765.9,2765.3,9.9219]
[1724510079349,3.61574,2765.7,2765.3,9.9219]
[1724510079555,3.61574,2765.7,2765.4,1.353817]
[1724510080067,3.61558,2765.9,2765.4,1.353817]
[1724510080364,7.23114,2765.9,2765.4,1.353817]
[1724510080529,7.2311,2765.9,2765.4,1.353817]
[1724510080729,3.61554,2765.9,2765.4,1.353817]
[1724510080959,3.61554,2765.9,2765.5,1.4891957]
[1724510082351,3.61561,2765.8,2765.4,1.353817]
[1724510082873,3.61561,2765.8,2765.4,4.969917]
[1724510083371,6.02888,2766.1,2765.4,4.969917]
[1724510083666,3.61547,2765.9,2765.4,4.969917]
[1724510084467,3.61547,2765.9,2765.4,8.586017]
[1724510084769,3.61547,2765.9,2765.5,1.23248921]
[1724510085152,3.61536,2766.0,2765.5,4.84839921]
[1724510087863,4.88203511,2766.2,2765.7,3.61568]
[1724510088549,4.88203511,2766.2,2765.6,3.61583]
[1724510089289,3.6152,2766.1,2765.6,3.61583]
[1724510089761,7.23047,2766.1,2765.6,3.61583]
[1724510089961,3.6152,2766.1,2765.6,3.61583]
[1724510095903,3.61501,2766.3,2765.8,3.61558]
[1724510097294,3.61507,2766.2,2765.8,3.61558]
[1724510097540,3.61507,2766.2,2765.7,6.06121]
[1724510098653,3.6152,2766.1,2765.6,4.46228592]
[1724510099941,3.6152,2766.1,2765.6,4.46221592]
[1724510102514,3.61534,2766.0,2765.6,4.46221592]
[1724510108184,4.88205511,2766.2,2765.6,4.46221592]
[1724510108670,3.61528,2766.1,2765.6,4.46221592]
[1724510108878,3.61536,2766.0,2765.4,6.06148]
[1724510109083,3.61536,2766.0,2765.3,8.71697511]
[1724510109084,3.6156,2765.8,2765.3,7.45]
[1724510109270,2.3308,2765.7,2765.3,7.45]
[1724510109441,3.61592,2765.6,2765.3,7.45]
[1724510109642,3.61611,2765.4,2765.3,7.45]
[1724510110587,3.61592,2765.6,2765.3,7.45]
[1724510111144,7.23187,2765.6,2765.3,7.45]
[1724510111493,3.61592,2765.6,2765.3,7.45]
[1724510111985,7.23189,2765.6,2765.3,7.45]
[1724510112146,3.61592,2765.6,2765.3,7.45]
[1724510112521,7.21388511,2765.4,2764.8,3.61678]
[1724510112687,3.6163,2765.3,2764.8,3.61678]
[1724510114091,3.59777511,2765.4,2764.8,7.2336]
[1724510114876,7.21388511,2765.4,2764.8,3.61678]
[1724510117299,7.21388511,2765.4,2764.9,3.61676]
[1724510117891,10.83011511,2765.4,2764.8,3.61687]
[1724510118103,7.21388511,2765.4,2764.8,7.23374]
[1724510118399,7.21388511,2765.4,2764.8,3.61687]
[1724510118605,7.21388511,2765.4,2764.8,7.23364]
[1724510120501,7.21388511,2765.4,2764.9,3.61676]
[1724510121300,7.21388511,2765.4,2764.8,3.61682]
[1724510121301,3.61634,2765.3,2764.8,3.61682]
[1724510121515,7.21388511,2765.4,2765.0,3.61661]
[1724510121516,2.3308,2765.4,2765.0,3.61661]
[1724510122366,5.94693,2765.4,2764.8,7.72195951]
[1724510122790,5.94693,2765.4,2764.9,3.61673]
[1724510125133,2.3661,2765.7,2765.3,3.6162]
[1724510125446,2.3661,2765.9,2765.4,0.48831751]
[1724510125739,2.3661,2765.9,2765.4,4.10440751]
[1724510125876,2.3661,2765.9,2765.5,3.61597]
[1724510126075,3.6154,2766.0,2765.5,3.61597]
[1724510127279,7.23081,2766.0,2765.3,6.11603]
[1724510127482,4.88237511,2766.0,2765.4,3.61611]
[1724510127683,8.49778511,2766.0,2765.4,3.61611]
[1724510127883,4.88237511,2766.0,2765.4,3.61611]
[1724510128692,4.88237511,2766.0,2765.4,7.23215]
[1724510128899,4.88237511,2766.0,2765.4,4.46595251]
[1724510129217,4.88237511,2766.0,2765.4,4.46594251]
[1724510130317,3.61547,2765.9,2765.4,4.46594251]
[1724510131901,0.08996094,2765.8,2765.4,4.46594251]
[1724510132686,0.08996094,2765.8,2765.4,8.08197251]
[1724510132890,4.88237511,2766.0,2765.5,3.30809725]
[1724510133090,8.49778511,2766.0,2765.5,3.30809725]
[1724510133316,0.0905149,2765.9,2765.5,3.30809725]
[1724510134021,3.7060149,2765.9,2765.5,0.80819725]
[1724510134225,3.7060149,2765.9,2765.4,3.61603]
[1724510134429,3.61561,2765.8,2765.3,2.4999]
[1724510134730,3.7058249,2765.8,2765.3,6.11607]
[1724510135427,0.0902149,2765.8,2765.4,3.61608]
[1724510135805,3.61547,2765.9,2765.4,3.61608]
[1724510135999,0.09018305,2765.7,2765.4,4.71600051]
[1724510136199,2.29,2765.7,2765.4,1.09992051]
[1724510136409,0.08977756,2765.6,2765.2,4.88322511]
[1724510136631,0.08977756,2765.6,2765.3,3.6162]
[1724510137299,3.70566756,2765.6,2765.0,3.73557511]
[1724510137497,3.70566756,2765.6,2765.1,6.61647]
[1724510137809,7.32163756,2765.6,2765.1,6.61647]
[1724510138022,3.61605,2765.5,2764.8,14.02380951]
[1724510138330,3.61632,2765.3,2764.8,14.02380951]
[1724510138541,0.08964529,2765.2,2764.8,14.02380951]
[1724510138831,5.90632,2765.3,2764.8,14.02380951]
[1724510139052,0.08961343,2765.1,2764.8,14.02380951]
[1724510139203,0.08959697,2765.2,2764.9,1.40238095]
[1724510139541,5.90632,2765.3,2764.9,1.40238095]
[1724510139699,0.0895651,2765.1,2764.9,1.40238095]
[1724510139898,5.90632,2765.3,2764.9,1.40238095]
[1724510140099,0.08951964,2765.2,2764.9,1.40238095]
[1724510140299,5.90631,2765.3,2764.9,1.40238095]
[1724510140518,5.90631,2765.3,2764.8,11.06683]
[1724510140519,0.08951964,2765.2,2764.8,11.06683]
[1724510140725,5.90631,2765.3,2764.8,11.06683]
[1724510140928,0.08951964,2765.2,2764.8,11.06683]
[1724510141122,5.90631,2765.3,2764.8,14.68365]
[1724510141328,0.08951964,2765.2,2764.8,14.68364]
[1724510141639,5.90631,2765.3,2764.8,16.82556151]
[1724510141946,0.08951964,2765.2,2764.8,16.82556151]
[1724510142308,5.90631,2765.3,2764.8,13.20874151]
[1724510142508,0.08951964,2765.2,2764.8,16.82553151]
[1724510142720,5.90631,2765.3,2764.8,13.20871151]
[1724510142938,0.08951964,2765.2,2764.8,16.82554151]
[1724510143246,5.90631,2765.3,2764.8,5.75871151]
[1724510143433,0.08948777,2765.1,2764.8,5.75871151]
[1724510143619,0.08951964,2765.2,2764.8,5.75871151]
[1724510143820,0.08945591,2765.0,2764.8,5.75871151]
[1724510144145,0.08942404,2764.9,2764.8,9.37553151]
[1724510144343,5.90631,2765.3,2764.8,9.37553151]
[1724510144344,5.90631,2765.3,2764.8,12.37553151]
[1724510144641,0.08951964,2765.2,2764.9,3.61675]
[1724510144805,2.29,2765.3,2764.9,3.61675]
[1724510145006,0.08948777,2765.1,2764.9,3.61675]
[1724510145218,2.29,2765.3,2764.9,3.61675]
[1724510145542,5.90625,2765.3,2764.8,3.61688]
[1724510145744,5.90625,2765.3,2764.4,5.99893]
[1724510145745,3.93498964,2765.2,2764.4,5.99893]
[1724510146053,2.3696,2764.9,2764.4,3.61733]
[1724510146425,0.0893535,2764.8,2764.4,3.61733]
[1724510148308,0.0893535,2764.8,2764.4,4.517223]
[1724510149122,0.0893535,2764.8,2764.5,3.61726]
[1724510150087,0.0893535,2764.8,2764.4,8.134533]
[1724510150838,0.0893535,2764.8,2764.4,4.517203]
[1724510152014,0.0893535,2764.8,2764.4,8.134543]
[1724510152212,0.0893535,2764.8,2764.5,3.61727]
[1724510157877,0.0893535,2764.8,2764.4,4.517203]
[1724510158050,0.0893535,2764.8,2764.4,8.134553]
[1724510158456,0.0893535,2764.8,2764.5,3.61728]
[1724510163661,0.0893535,2764.8,2764.4,8.134533]
[1724510163848,0.0893535,2764.8,2764.5,3.61728]
[1724510164850,0.0893535,2764.8,2764.4,8.134553]
[1724510165050,0.0893535,2764.8,2764.5,3.61725]
[1724510165281,0.0893535,2764.8,2764.4,4.517203]
[1724510165786,0.0893535,2764.8,2764.4,8.134553]
[1724510167085,0.0893535,2764.8,2764.5,3.61726]
[1724510170848,0.0893535,2764.8,2764.5,4.55740381]
[1724510171598,0.0893535,2764.8,2764.6,3.61704]
[1724510172078,5.91171,2765.1,2764.6,3.61704]
[1724510172258,0.08862066,2764.7,2764.6,3.61704]
[1724510172457,5.91171,2765.1,2764.6,3.61704]
[1724510172656,0.08862066,2764.7,2764.6,3.61704]
[1724510172889,3.61664,2765.0,2764.5,4.55743381]
[1724510173386,0.0886844,2764.9,2764.6,3.61713]
[1724510173561,0.0886844,2764.9,2764.6,4.52458068]
[1724510173750,5.91174,2765.1,2764.6,4.52458068]
[1724510173953,0.08871627,2765.0,2764.6,3.61713]
[1724510174594,3.70536627,2765.0,2764.5,3.61728]
[1724510174886,3.61694,2764.8,2764.3,3.61743]
[1724510175191,0.0886255,2764.7,2764.4,3.0]
[1724510175546,3.61694,2764.8,2764.4,3.0]
[1724510175850,3.61694,2764.8,2763.6,0.75565844]
[1724510175851,3.61816,2763.9,2763.2,3.61886]
[1724510176149,3.61816,2763.9,2763.0,3.75637511]
[1724510176150,3.61854,2763.6,2763.0,6.10858]
[1724510176484,3.61876,2763.4,2762.8,3.61946]
[1724510176696,4.97388829,2763.5,2762.9,3.61937]
[1724510176993,0.0879401,2763.4,2762.9,3.61937]
[1724510183195,3.6189,2763.3,2762.8,5.98592062]
[1724510183372,3.6189,2763.3,2762.9,3.0]
[1724510183568,0.0879286,2763.2,2762.9,3.0]
[1724510183773,3.6189,2763.3,2762.9,3.0]
[1724510184092,0.0879286,2763.2,2762.9,3.0]
[1724510184497,3.6189,2763.3,2762.9,3.0]
[1724510184990,0.0879286,2763.2,2762.9,3.77189455]
[1724510185372,3.6189,2763.3,2762.9,3.77189455]
[1724510185576,0.0879286,2763.2,2762.9,3.77189455]
[1724510185975,3.6189,2763.3,2762.9,3.77189455]
[1724510186326,0.0879286,2763.2,2762.9,3.77189455]
[1724510186783,0.0879286,2763.2,2762.6,7.45]
[1724510186784,3.6194,2762.9,2762.6,7.45]
[1724510187170,3.70658117,2763.1,2762.3,1.26697511]